fUSD/lending_fUSD_20250923
["ID","MTS","AMOUNT","RATE_DAILY","PERIOD"]
[387240209,1758664310710,-481.27016323,0.00025521,2]
[387240210,1758664310719,-1000.0,0.00025521,2]
[387240211,1758664310729,-1000.0,0.00025521,2]
[387240212,1758664310738,-477.37633392,0.00025521,2]
[387240213,1758664310748,-687.18628542,0.00025521,2]
[387240214,1758664310758,-1000.0,0.00025521,2]
[387240215,1758664310767,-1000.0,0.00025521,2]
[387240216,1758664310777,-1000.0,0.00025521,2]
[387240217,1758664310787,-1009.72759451,0.00025521,2]
[387240218,1758664310796,-500.0,0.00025521,2]
[387240219,1758664310806,-1000.0,0.00025521,2]
[387240220,1758664310815,-371.16965926,0.00025521,2]
[387240221,1758664310825,-1000.0,0.00025521,2]
[387240222,1758664310835,-1000.0,0.00025521,2]
[387240223,1758664310844,-1000.0,0.00025521,2]
[387240224,1758664310854,-232.819988,0.00025521,2]
[387240225,1758664310863,-1000.0,0.00025521,2]
[387240226,1758664310873,-1000.0,0.00025521,2]
[387240227,1758664310882,-1000.0,0.00025521,2]
[387240228,1758664310892,-1000.0,0.00025521,2]
[387240229,1758664310901,-177.81538347,0.00025521,2]
[387240230,1758664310911,-1000.0,0.00025521,2]
[387240231,1758664310921,-1000.0,0.00025521,2]
[387240232,1758664310931,-501.38308331,0.00025521,2]
[387240233,1758664310940,-1000.0,0.00025521,2]
[387240234,1758664310950,-1000.0,0.00025521,2]
[387240235,1758664310959,-1000.0,0.00025521,2]
[387240236,1758664310969,-1000.0,0.00025521,2]
[387240237,1758664310978,-341.76577726,0.00025521,2]
[387240238,1758664310987,-1000.0,0.00025521,2]
[387240239,1758664311000,-1000.0,0.00025521,2]
[387240240,1758664311009,-2000.0,0.00025522,2]
[387240241,1758664311019,-671.0,0.0002554,2]
[387240242,1758664311028,-613.9,0.0002555,2]
[387240243,1758664311038,-346.92554585,0.00025558,2]
[387240244,1758664311047,-150.0,0.00025558,2]
[387240245,1758664311056,-501.95391908,0.00025558,2]
[387240246,1758664311065,-150.0,0.00025558,2]
[387240247,1758664311074,-500.0,0.00025558,2]
[387240248,1758664311084,-386.42521993,0.00025558,2]
[387240249,1758664311093,-150.0,0.00025558,2]
[387240250,1758664311102,-500.0,0.00025558,2]
[387240251,1758664311111,-150.0,0.00025558,2]
[387240252,1758664311120,-500.0,0.00025558,2]
[387240253,1758664311129,-500.0,0.00025558,2]
[387240254,1758664311139,-150.0,0.00025558,2]
[387240255,1758664311148,-1233.0,0.00025558,2]
[387240256,1758664311158,-500.0,0.00025558,2]
[387240257,1758664311167,-150.0,0.00025558,2]
[387240258,1758664311176,-301.40609842,0.00025558,2]
[387240259,1758664311186,-500.0,0.00025558,2]
[387240260,1758664311195,-150.0,0.00025558,2]
[387240261,1758664311204,-500.0,0.00025558,2]
[387240262,1758664311213,-150.0,0.00025558,2]
[387240263,1758664311222,-200.0,0.00025558,2]
[387240264,1758664311231,-434.0,0.00025558,2]
[387240265,1758664311240,-150.0,0.00025558,2]
[387240266,1758664311249,-625.26402641,0.00025559,2]
[387240267,1758664311258,-240.0,0.00025613,2]
[387240268,1758664311267,-400.0,0.00025621,3]
[387240269,1758664311276,-152.0,0.00025651,6]
[387240270,1758664311285,-1545.40600196,0.00025653,2]
[387240271,1758664311294,-169.36,0.00025701,2]
[387240272,1758664311304,-671.0,0.00025704,2]
[387240273,1758664311313,-323.02865827,0.00025708,2]
[387240274,1758664311322,-947.43,0.00025711,3]
[387240275,1758664311331,-14253.46763913,0.00025745,4]
[387240276,1758664311340,-5000.00000013,0.00025748,7]
[387240277,1758664311349,-300.0,0.00025752,10]
[387240278,1758664311358,-400.0,0.00025753,3]
[387240279,1758664311367,-400.0,0.00025753,3]
[387240280,1758664311376,-400.0,0.00025753,3]
[387240281,1758664311388,-422.15,0.00025753,3]
[387240282,1758664311397,-400.0,0.00025753,3]
[387240283,1758664311406,-400.0,0.00025753,3]
[387240284,1758664311415,-400.0,0.00025753,3]
[387240285,1758664311425,-400.0,0.00025753,3]
[387240286,1758664311434,-400.0,0.00025753,3]
[387240287,1758664311443,-400.0,0.00025753,3]
[387240288,1758664311453,-722.3,0.00025753,3]
[387240289,1758664311463,-400.0,0.00025753,3]
[387240290,1758664311473,-425.13,0.00025753,3]
[387240291,1758664311482,-400.0,0.00025753,3]
[387240292,1758664311492,-463.61,0.00025753,3]
[387240293,1758664311501,-400.0,0.00025753,3]
[387240294,1758664311510,-400.0,0.00025753,3]
[387240295,1758664311519,-400.81,0.00025753,3]
[387240296,1758664311528,-606.67,0.00025753,3]
[387240297,1758664311537,-400.0,0.00025753,3]
[387240298,1758664311546,-400.0,0.00025753,3]
[387240299,1758664311556,-558.51,0.00025753,3]
[387240300,1758664311565,-400.0,0.00025753,3]
[387240301,1758664311574,-400.0,0.00025753,3]
[387240302,1758664311583,-517.79,0.00025753,3]
[387240303,1758664311592,-410.1,0.00025753,3]
[387240304,1758664311601,-400.0,0.00025753,3]
[387240305,1758664311611,-400.0,0.00025753,3]
[387240306,1758664311620,-513.24,0.00025753,3]
[387240307,1758664311629,-864.38,0.00025753,3]
[387240308,1758664311638,-400.0,0.00025753,3]
[387240309,1758664311647,-400.0,0.00025753,3]
[387240310,1758664311657,-400.0,0.00025753,3]
[387240311,1758664311666,-400.0,0.00025753,3]
[387240312,1758664311675,-400.0,0.00025753,3]
[387240313,1758664311684,-400.0,0.00025753,3]
[387240314,1758664311693,-400.0,0.00025753,3]
[387240315,1758664311702,-1162.37,0.00025753,3]
[387240316,1758664311712,-1113.94,0.00025753,3]
[387240317,1758664311720,-1113.94,0.00025753,3]
[387240318,1758664311729,-400.0,0.00025753,3]
[387240319,1758664311738,-499.32,0.00025753,3]
[387240320,1758664311747,-400.0,0.00025753,3]
[387240321,1758664311756,-164.86884923,0.00025753,3]
[387240322,1758664311765,-400.0,0.00025753,3]
[387240323,1758664311775,-400.0,0.00025753,3]
[387240324,1758664311784,-400.0,0.00025753,3]
[387240325,1758664311793,-400.0,0.00025753,3]
[387240326,1758664311802,-701.54,0.00025753,3]
[387240327,1758664311811,-448.15,0.00025753,3]
[387240328,1758664311820,-527.27,0.00025753,3]
[387240329,1758664311829,-400.0,0.00025753,3]
[387240330,1758664311839,-400.0,0.00025753,3]
[387240331,1758664311847,-400.0,0.00025753,3]
[387240332,1758664311856,-433.43,0.00025753,3]
[387240333,1758664311866,-400.0,0.00025753,3]
[387240334,1758664311875,-1431.46,0.00025753,3]
[387240335,1758664311884,-400.0,0.00025753,3]
[387240336,1758664311893,-888.36,0.00025753,3]
[387240337,1758664311902,-400.0,0.00025753,3]
[387240338,1758664311912,-400.0,0.00025753,3]
[387240339,1758664311921,-500.78,0.00025753,3]
[387240340,1758664311931,-400.0,0.00025753,3]
[387240341,1758664311940,-400.0,0.00025753,3]
[387240342,1758664311949,-415.37,0.00025753,3]
[387240343,1758664311959,-400.0,0.00025753,3]
[387240344,1758664311969,-851.65,0.00025753,3]
[387240345,1758664311979,-469.22,0.00025753,3]
[387240346,1758664311988,-449.67,0.00025753,3]
[387240347,1758664311998,-514.2,0.00025753,3]
[387240348,1758664312007,-696.09,0.00025753,3]
[387240349,1758664312016,-400.0,0.00025753,3]
[387240350,1758664312026,-942.3,0.00025753,3]
[387240351,1758664312036,-401.11,0.00025753,3]
[387240352,1758664312045,-409.1,0.00025753,3]
[387240353,1758664312055,-400.0,0.00025753,3]
[387240354,1758664312064,-400.0,0.00025753,3]
[387240355,1758664312074,-400.0,0.00025753,3]
[387240356,1758664312083,-483.66,0.00025753,3]
[387240357,1758664312093,-700.73,0.00025753,3]
[387240358,1758664312102,-1218.15,0.00025753,3]
[387240359,1758664312113,-432.38,0.00025753,3]
[387240360,1758664312122,-400.0,0.00025753,3]
[387240361,1758664312131,-400.0,0.00025753,3]
[387240362,1758664312141,-413.32,0.00025753,3]
[387240363,1758664312151,-600.39,0.00025753,3]
[387240364,1758664312161,-400.0,0.00025753,3]
[387240365,1758664312171,-400.0,0.00025753,3]
[387240366,1758664312181,-525.79,0.00025753,3]
[387240367,1758664312190,-400.0,0.00025753,3]
[387240368,1758664312200,-400.0,0.00025753,3]
[387240369,1758664312209,-585.89,0.00025753,3]
[387240370,1758664312218,-400.0,0.00025753,3]
[387240371,1758664312228,-400.0,0.00025753,3]
[387240372,1758664312237,-1162.35,0.00025753,3]
[387240373,1758664312246,-869.19,0.00025753,3]
[387240374,1758664312256,-683.96,0.00025753,3]
[387240375,1758664312265,-400.0,0.00025753,3]
[387240376,1758664312274,-853.3,0.00025753,3]
[387240377,1758664312283,-400.0,0.00025753,3]
[387240378,1758664312292,-400.0,0.00025753,3]
[387240379,1758664312301,-684.3,0.00025753,3]
[387240380,1758664312310,-521.50102721,0.00025753,3]
[387240381,1758664312320,-714.46,0.00025753,3]
[387240382,1758664312329,-684.69,0.00025753,3]
[387240383,1758664312338,-684.69,0.00025753,3]
[387240384,1758664312347,-400.0,0.00025753,3]
[387240385,1758664312356,-400.0,0.00025753,3]
[387240386,1758664312366,-400.0,0.00025753,3]
[387240387,1758664312378,-400.0,0.00025753,3]
[387240388,1758664312389,-451.05,0.00025753,3]
[387240389,1758664312399,-1130.1,0.00025753,3]
[387240390,1758664312408,-314.41636123,0.00025753,3]
[387240391,1758664312418,-1034.82,0.00025753,3]
[387240392,1758664312428,-414.11,0.00025753,3]
[387240393,1758664312437,-400.0,0.00025753,3]
[387240394,1758664312446,-400.0,0.00025753,3]
[387240395,1758664312459,-400.0,0.00025753,3]
[387240396,1758664312468,-568.34,0.00025753,3]
[387240397,1758664312477,-497.27,0.00025753,3]
[387240398,1758664312486,-400.0,0.00025753,3]
[387240399,1758664312497,-483.14,0.00025753,3]
[387240400,1758664312506,-400.0,0.00025753,3]
[387240401,1758664312516,-400.0,0.00025753,3]
[387240402,1758664312526,-400.0,0.00025753,3]
[387240403,1758664312538,-400.0,0.00025753,3]
[387240404,1758664312547,-963.02,0.00025753,3]
[387240405,1758664312556,-442.92,0.00025753,3]
[387240406,1758664312566,-400.0,0.00025753,3]
[387240407,1758664312575,-400.0,0.00025753,3]
[387240408,1758664312584,-400.0,0.00025753,3]
[387240409,1758664312593,-419.2,0.00025753,3]
[387240410,1758664312603,-400.0,0.00025753,3]
[387240411,1758664312612,-495.44,0.00025753,3]
[387240412,1758664312622,-400.0,0.00025753,3]
[387240413,1758664312631,-1113.1,0.00025753,3]
[387240414,1758664312640,-564.87,0.00025753,3]
[387240415,1758664312650,-400.0,0.00025753,3]
[387240416,1758664312659,-400.0,0.00025753,3]
[387240417,1758664312668,-400.0,0.00025753,3]
[387240418,1758664312677,-442.1,0.00025753,3]
[387240419,1758664312686,-612.62,0.00025753,3]
[387240420,1758664312695,-400.0,0.00025753,3]
[387240421,1758664312704,-544.44,0.00025753,3]
[387240422,1758664312714,-553.48,0.00025753,3]
[387240423,1758664312723,-400.0,0.00025753,3]
[387240424,1758664312732,-811.92,0.00025753,3]
[387240425,1758664312741,-400.0,0.00025753,3]
[387240426,1758664312750,-156.52591372,0.00025753,3]
[387240427,1758664312759,-866.52,0.00025753,3]
[387240428,1758664312769,-400.0,0.00025753,3]
[387240429,1758664312778,-400.0,0.00025753,3]
[387240430,1758664312787,-400.0,0.00025753,3]
[387240431,1758664312796,-400.0,0.00025753,3]
[387240432,1758664312805,-1271.99,0.00025753,3]
[387240433,1758664312814,-400.0,0.00025753,3]
[387240434,1758664312823,-555.94,0.00025753,3]
[387240435,1758664312832,-400.0,0.00025753,3]
[387240436,1758664312841,-516.66,0.00025753,3]
[387240437,1758664312850,-443.34,0.00025753,3]
[387240438,1758664312859,-460.81,0.00025753,3]
[387240439,1758664312868,-400.0,0.00025753,3]
[387240440,1758664312884,-400.0,0.00025753,3]
[387240441,1758664312893,-502.53,0.00025753,3]
[387240442,1758664312903,-505.37,0.00025753,3]
[387240443,1758664312912,-542.19,0.00025753,3]
[387240444,1758664312921,-404.11251011,0.00025753,3]
[387240445,1758664312931,-688.7,0.00025753,3]
[387240446,1758664312939,-1015.44,0.00025753,3]
[387240447,1758664312949,-1292.63,0.00025753,3]
[387240448,1758664312958,-400.0,0.00025753,3]
[387240449,1758664312967,-1611.73,0.00025753,3]
[387240450,1758664312976,-637.7,0.00025753,3]
[387240451,1758664312986,-400.0,0.00025753,3]
[387240452,1758664312999,-413.30877712,0.00025753,3]
[387240453,1758664313008,-1000.0,0.00025753,3]
[387240454,1758664313018,-660.83,0.00025753,3]
[387240455,1758664313028,-549.84,0.00025753,3]
[387240456,1758664313038,-1262.83,0.00025753,3]
[387240457,1758664313047,-400.0,0.00025753,3]
[387240458,1758664313056,-511.14,0.00025753,3]
[387240459,1758664313066,-1072.23,0.00025753,3]
[387240460,1758664313076,-435.66,0.00025753,3]
[387240461,1758664313085,-400.0,0.00025753,3]
[387240462,1758664313096,-446.42,0.00025753,3]
[387240463,1758664313105,-956.24,0.00025753,3]
[387240464,1758664313115,-804.81,0.00025753,3]
[387240465,1758664313124,-493.33,0.00025753,3]
[387240466,1758664313133,-400.0,0.00025753,3]
[387240467,1758664313142,-400.0,0.00025753,3]
[387240468,1758664313152,-400.0,0.00025753,3]
[387240469,1758664313161,-302.58197755,0.00025753,3]
[387240470,1758664313170,-400.0,0.00025753,3]
[387240471,1758664313179,-400.0,0.00025753,3]
[387240472,1758664313188,-425.12,0.00025753,3]
[387240473,1758664313198,-400.0,0.00025753,3]
[387240474,1758664313207,-400.0,0.00025753,3]
[387240475,1758664313216,-400.0,0.00025753,3]
[387240476,1758664313225,-536.14,0.00025753,3]
[387240477,1758664313234,-400.0,0.00025753,3]
[387240478,1758664313243,-400.0,0.00025753,3]
[387240479,1758664313253,-400.0,0.00025753,3]
[387240480,1758664313263,-400.0,0.00025753,3]
[387240481,1758664313272,-400.0,0.00025753,3]
[387240482,1758664313282,-400.0,0.00025753,3]
[387240483,1758664313291,-400.0,0.00025753,3]
[387240484,1758664313303,-400.0,0.00025753,3]
[387240485,1758664313314,-647.53,0.00025753,3]
[387240486,1758664313325,-1446.35,0.00025753,3]
[387240487,1758664313334,-400.0,0.00025753,3]
[387240488,1758664313343,-400.0,0.00025753,3]
[387240489,1758664313352,-400.0,0.00025753,3]
[387240490,1758664313362,-400.0,0.00025753,3]
[387240491,1758664313372,-712.76,0.00025753,3]
[387240492,1758664313385,-409.61305231,0.00025753,3]
[387240493,1758664313395,-400.0,0.00025753,3]
[387240494,1758664313406,-742.51,0.00025753,3]
[387240495,1758664313415,-400.0,0.00025753,3]
[387240496,1758664313426,-400.0,0.00025753,3]
[387240497,1758664313435,-609.25,0.00025753,3]
[387240498,1758664313445,-1004.12,0.00025753,3]
[387240499,1758664313453,-400.0,0.00025753,3]
[387240500,1758664313464,-400.0,0.00025753,3]
[387240501,1758664313474,-400.0,0.00025753,3]
[387240502,1758664313483,-400.0,0.00025753,3]
[387240503,1758664313492,-1267.73,0.00025753,3]
[387240504,1758664313501,-400.0,0.00025753,3]
[387240505,1758664313510,-1089.2,0.00025753,3]
[387240506,1758664313519,-400.0,0.00025753,3]
[387240507,1758664313529,-400.0,0.00025753,3]
[387240508,1758664313538,-936.94,0.00025753,3]
[387240509,1758664313547,-400.0,0.00025753,3]
[387240510,1758664313556,-400.0,0.00025753,3]
[387240511,1758664313566,-400.0,0.00025753,3]
[387240512,1758664313575,-400.0,0.00025753,3]
[387240513,1758664313585,-628.73,0.00025753,3]
[387240514,1758664313594,-792.8,0.00025753,3]
[387240515,1758664313603,-400.0,0.00025753,3]
[387240516,1758664313613,-718.2,0.00025753,3]
[387240517,1758664313623,-771.65,0.00025753,3]
[387240518,1758664313632,-735.99,0.00025753,3]
[387240519,1758664313643,-400.0,0.00025753,3]
[387240520,1758664313653,-724.09,0.00025753,3]
[387240521,1758664313662,-400.0,0.00025753,3]
[387240522,1758664313671,-400.0,0.00025753,3]
[387240523,1758664313680,-735.82,0.00025753,3]
[387240524,1758664313690,-400.0,0.00025753,3]
[387240525,1758664313699,-400.0,0.00025753,3]
[387240526,1758664313708,-400.0,0.00025753,3]
[387240527,1758664313717,-724.51,0.00025753,3]
[387240528,1758664313727,-590.38,0.00025753,3]
[387240529,1758664313738,-400.0,0.00025753,3]
[387240530,1758664313748,-443.29,0.00025753,3]
[387240531,1758664313757,-424.82,0.00025753,3]
[387240532,1758664313766,-704.47,0.00025753,3]
[387240533,1758664313775,-400.0,0.00025753,3]
[387240534,1758664313784,-400.0,0.00025753,3]
[387240535,1758664313794,-597.65,0.00025753,3]
[387240536,1758664313803,-644.02,0.00025753,3]
[387240537,1758664313812,-490.6,0.00025753,3]
[387240538,1758664313822,-544.45,0.00025753,3]
[387240539,1758664313831,-400.0,0.00025753,3]
[387240540,1758664313840,-400.0,0.00025753,3]
[387240541,1758664313849,-400.0,0.00025753,3]
[387240542,1758664313858,-1124.92,0.00025753,3]
[387240543,1758664313868,-400.98,0.00025753,3]
[387240544,1758664313877,-1607.1,0.00025753,3]
[387240545,1758664313886,-643.25,0.00025753,3]
[387240546,1758664313895,-400.0,0.00025753,3]
[387240547,1758664313905,-400.0,0.00025753,3]
[387240548,1758664313916,-400.0,0.00025753,3]
[387240549,1758664313925,-702.26,0.00025753,3]
[387240550,1758664313934,-623.69,0.00025753,3]
[387240551,1758664313943,-400.0,0.00025753,3]
[387240552,1758664313953,-400.0,0.00025753,3]
[387240553,1758664313963,-1080.61,0.00025753,3]
[387240554,1758664313972,-422.24,0.00025753,3]
[387240555,1758664313982,-417.7,0.00025753,3]
[387240556,1758664313991,-909.48,0.00025753,3]
[387240557,1758664314000,-400.0,0.00025753,3]
[387240558,1758664314010,-515.95,0.00025753,3]
[387240559,1758664314019,-400.0,0.00025753,3]
[387240560,1758664314031,-419.15,0.00025753,3]
[387240561,1758664314040,-400.0,0.00025753,3]
[387240562,1758664314049,-1535.1,0.00025753,3]
[387240563,1758664314059,-421.32,0.00025753,3]
[387240564,1758664314068,-610.62,0.00025753,3]
[387240565,1758664314077,-416.95010525,0.00025753,3]
[387240566,1758664314087,-400.0,0.00025753,3]
[387240567,1758664314096,-400.0,0.00025753,3]
[387240568,1758664314106,-400.0,0.00025753,3]
[387240569,1758664314117,-400.0,0.00025753,3]
[387240570,1758664314126,-788.82,0.00025753,3]
[387240571,1758664314135,-501.25,0.00025753,3]
[387240572,1758664314144,-400.0,0.00025753,3]
[387240573,1758664314153,-400.0,0.00025753,3]
[387240574,1758664314163,-400.0,0.00025753,3]
[387240575,1758664314172,-400.0,0.00025753,3]
[387240576,1758664314181,-400.0,0.00025753,3]
[387240577,1758664314190,-400.0,0.00025753,3]
[387240578,1758664314199,-467.58,0.00025753,3]
[387240579,1758664314208,-614.35,0.00025753,3]
[387240580,1758664314217,-387.17,0.00025753,3]
[387240581,1758664314226,-686.69,0.00025753,3]
[387240582,1758664314236,-400.0,0.00025753,3]
[387240583,1758664314245,-400.0,0.00025753,3]
[387240584,1758664314254,-400.0,0.00025753,3]
[387240585,1758664314264,-1284.73,0.00025753,3]
[387240586,1758664314273,-642.36,0.00025753,3]
[387240587,1758664314282,-560.54,0.00025753,3]
[387240588,1758664314291,-1073.37,0.00025753,3]
[387240589,1758664314301,-400.0,0.00025753,3]
[387240590,1758664314310,-753.1,0.00025753,3]
[387240591,1758664314319,-400.0,0.00025753,3]
[387240592,1758664314328,-545.97,0.00025753,3]
[387240593,1758664314338,-400.0,0.00025753,3]
[387240594,1758664314347,-400.0,0.00025753,3]
[387240595,1758664314356,-400.0,0.00025753,3]
[387240596,1758664314365,-580.05,0.00025753,3]
[387240597,1758664314375,-1196.06,0.00025753,3]
[387240598,1758664314387,-779.4,0.00025753,3]
[387240599,1758664314396,-1387.31,0.00025753,3]
[387240600,1758664314405,-526.44,0.00025753,3]
[387240601,1758664314415,-400.0,0.00025753,3]
[387240602,1758664314425,-914.9,0.00025753,3]
[387240603,1758664314435,-400.0,0.00025753,3]
[387240604,1758664314444,-751.05,0.00025753,3]
[387240605,1758664314454,-10481.21,0.00025753,3]
[387240606,1758664314463,-541.09037536,0.00025753,3]
[387240607,1758664314473,-400.0,0.00025753,3]
[387240608,1758664314482,-585.69,0.00025753,3]
[387240609,1758664314492,-1984.04,0.00025753,3]
[387240610,1758664314501,-400.0,0.00025753,3]
[387240611,1758664314512,-400.0,0.00025753,3]
[387240612,1758664314522,-1075.59,0.00025753,3]
[387240613,1758664314532,-1243.9,0.00025753,3]
[387240614,1758664314541,-2675.56,0.00025753,3]
[387240615,1758664314551,-1687.56,0.00025753,3]
[387240616,1758664314560,-603.56,0.00025753,3]
[387240617,1758664314570,-400.0,0.00025753,3]
[387240618,1758664314579,-400.0,0.00025753,3]
[387240619,1758664314589,-613.2,0.00025753,3]
[387240620,1758664314599,-498.75,0.00025753,3]
[387240621,1758664314608,-1380.17,0.00025753,3]
[387240622,1758664314618,-400.0,0.00025753,3]
[387240623,1758664314628,-637.31,0.00025753,3]
[387240624,1758664314638,-536.31,0.00025753,3]
[387240625,1758664314648,-400.0,0.00025753,3]
[387240626,1758664314659,-1960.16,0.00025753,3]
[387240627,1758664314669,-3596.07,0.00025753,3]
[387240628,1758664314679,-653.4,0.00025753,3]
[387240629,1758664314689,-400.0,0.00025753,3]
[387240630,1758664314698,-400.0,0.00025753,3]
[387240631,1758664314708,-1811.83,0.00025753,3]
[387240632,1758664314718,-400.0,0.00025753,3]
[387240633,1758664314728,-485.31,0.00025753,3]
[387240634,1758664314738,-609.4,0.00025753,3]
[387240635,1758664314747,-1777.36,0.00025753,3]
[387240636,1758664314757,-955.0,0.00025753,3]
[387240637,1758664314766,-1530.13,0.00025753,3]
[387240638,1758664314776,-400.0,0.00025753,3]
[387240639,1758664314786,-400.0,0.00025753,3]
[387240640,1758664314796,-1065.12,0.00025753,3]
[387240641,1758664314805,-400.0,0.00025753,3]
[387240642,1758664314815,-624.46,0.00025753,3]
[387240643,1758664314825,-668.62,0.00025753,3]
[387240644,1758664314835,-400.0,0.00025753,3]
[387240645,1758664314845,-766.88,0.00025753,3]
[387240646,1758664314855,-488.82,0.00025753,3]
[387240647,1758664314865,-400.0,0.00025753,3]
[387240648,1758664314875,-1866.98,0.00025753,3]
[387240649,1758664314885,-674.88,0.00025753,3]
[387240650,1758664314895,-2251.93,0.00025753,3]
[387240651,1758664314905,-400.0,0.00025753,3]
[387240652,1758664314915,-507.6,0.00025753,3]
[387240653,1758664314925,-1430.39,0.00025753,3]
[387240654,1758664314935,-400.0,0.00025753,3]
[387240655,1758664314946,-1005.24,0.00025753,3]
[387240656,1758664314956,-400.0,0.00025753,3]
[387240657,1758664314966,-706.55,0.00025753,3]
[387240658,1758664314975,-400.0,0.00025753,3]
[387240659,1758664314985,-471.06,0.00025753,3]
[387240660,1758664314995,-1632.87,0.00025753,3]
[387240661,1758664315005,-440.49,0.00025753,3]
[387240662,1758664315015,-2172.06,0.00025753,3]
[387240663,1758664315026,-1577.53,0.00025753,3]
[387240664,1758664315036,-573.43,0.00025753,3]
[387240665,1758664315046,-1762.21,0.00025753,3]
[387240666,1758664315056,-371.94369689,0.00025753,3]
[387240667,1758664315067,-2598.87,0.00025753,3]
[387240668,1758664315077,-2106.48,0.00025753,3]
[387240669,1758664315087,-400.0,0.00025753,3]
[387240670,1758664315097,-2137.16,0.00025753,3]
[387240671,1758664315107,-1633.99,0.00025753,3]
[387240672,1758664315117,-665.33,0.00025753,3]
[387240673,1758664315127,-400.0,0.00025753,3]
[387240674,1758664315138,-507.04,0.00025753,3]
[387240675,1758664315148,-225.19993713,0.00025753,3]
[387240676,1758664315158,-2272.09,0.00025753,3]
[387240677,1758664315169,-652.14,0.00025753,3]
[387240678,1758664315184,-441.78,0.00025753,3]
[387240679,1758664315194,-2095.57,0.00025753,3]
[387240680,1758664315204,-2047.84,0.00025753,3]
[387240681,1758664315215,-425.92,0.00025753,3]
[387240682,1758664315225,-400.0,0.00025753,3]
[387240683,1758664315235,-782.31,0.00025753,3]
[387240684,1758664315245,-364.44390845,0.00025753,3]
[387240685,1758664315255,-400.0,0.00025753,3]
[387240686,1758664315264,-1845.88,0.00025753,3]
[387240687,1758664315274,-1531.58,0.00025753,3]
[387240688,1758664315283,-1188.08,0.00025753,3]
[387240689,1758664315293,-400.0,0.00025753,3]
[387240690,1758664315302,-1490.46,0.00025753,3]
[387240691,1758664315312,-2033.65,0.00025753,3]
[387240692,1758664315322,-400.0,0.00025753,3]
[387240693,1758664315332,-2177.65,0.00025753,3]
[387240694,1758664315343,-2728.22,0.00025753,3]
[387240695,1758664315352,-400.0,0.00025753,3]
[387240696,1758664315362,-457.97,0.00025753,3]
[387240697,1758664315372,-457.97,0.00025753,3]
[387240698,1758664315385,-400.0,0.00025753,3]
[387240699,1758664315395,-1405.11,0.00025753,3]
[387240700,1758664315405,-680.61,0.00025753,3]
[387240701,1758664315415,-1312.62,0.00025753,3]
[387240702,1758664315427,-1113.08,0.00025753,3]
[387240703,1758664315437,-400.0,0.00025753,3]
[387240704,1758664315448,-1415.66,0.00025753,3]
[387240705,1758664315459,-1698.64,0.00025753,3]
[387240706,1758664315471,-1079.65,0.00025753,3]
[387240707,1758664315482,-769.12,0.00025753,3]
[387240708,1758664315492,-400.0,0.00025753,3]